fUST/lending_fUST_20251114
["ID","MTS","AMOUNT","RATE_DAILY","PERIOD"]
[393876779,1763062169542,-1200.0,0.00035869,3]
[393876780,1763062169560,-500.0,0.00035869,3]
[393876781,1763062169579,-77749.96685591,0.0003587,7]
[393876782,1763062169598,-219.29842648,0.000359,120]
[393876783,1763062187785,200.0,0.00039566,120]
[393876894,1763062232047,-500.0,0.00035868,15]
[393876896,1763062232057,-374.8239084,0.00035868,15]
[393877078,1763062237836,-125.1760916,0.00035868,15]
[393877080,1763062237846,-374.8239084,0.00035868,15]
[393877082,1763062237858,-125.1760916,0.00035868,15]
[393877084,1763062237869,-157.09140421,0.00035868,15]
[393877086,1763062237880,-6.14525515,0.000359,120]
[393877088,1763062237891,-12.31104022,0.00036,30]
[393877092,1763062237902,-3607.13921305,0.00036,30]
[393877291,1763062246644,-367.85490382,0.00036,30]
[393877295,1763062247131,-50.5489324,0.00036,30]
[393877296,1763062247143,-26680.53779233,0.00036,30]
[393877297,1763062247152,-2375.17,0.00036,14]
[393877298,1763062247162,-196.306049,0.00036309,2]
[393877299,1763062247172,-153.03,0.00036743,60]
[393877301,1763062247182,-159.2,0.000368,2]
[393877302,1763062247192,-153.03,0.00036843,60]
[393877303,1763062247202,-153.03,0.00036943,60]
[393877305,1763062247211,-171.82025,0.00037,120]
[393877306,1763062247221,-225.44368163,0.00037,120]
[393877308,1763062247232,-153.03,0.00037043,60]
[393877309,1763062247243,-153.03,0.00037143,60]
[393877310,1763062247252,-153.03,0.00037243,60]
[393877311,1763062247261,-153.06,0.00037343,60]
[393877312,1763062247271,-188.669,0.00037358,48]
[393877313,1763062247281,-518.98655025,0.0003748,30]
[393877314,1763062247290,-1018.25775511,0.000378,2]
[393877315,1763062247300,-22083.08875108,0.00038998,2]
[393877316,1763062247309,-204.77591399,0.00039,120]
[393877317,1763062247318,-259.59414045,0.00039,120]
[393877318,1763062247327,-291.26,0.0003999,10]
[393877319,1763062247337,-1199.57508973,0.0004,2]
[393877320,1763062247346,-500.0,0.0004,2]
[393877321,1763062247358,-5748.90659659,0.0004,120]
[393877322,1763062247367,-1115.89910846,0.0004,120]
[393877323,1763062247376,-29873.17205227,0.0004,7]
[393877324,1763062247387,-2096.26778962,0.0004,7]
[393877325,1763062247398,-454.932072,0.0004,7]
[393877329,1763062267532,-541.74,0.0003999,10]
[393877330,1763062267563,-451.45,0.0003999,10]
[393877331,1763062267687,-843.58194054,0.0004,7]
[393877332,1763062267747,-10000.01,0.0004,7]
[393877333,1763062267873,-10000.01,0.0004,7]
[393877334,1763062268030,-10000.01,0.0004,7]
[393877335,1763062268149,-10000.01,0.0004,7]
[393877336,1763062268308,-10000.01,0.0004,7]
[393877339,1763062268458,-10000.01,0.0004,7]
[393877340,1763062268567,-10000.01,0.0004,7]
[393877341,1763062268685,-10000.01,0.0004,7]
[393877342,1763062268808,-10000.01,0.0004,7]
[393877343,1763062276842,-1402.87960276,0.0004,7]
[393877344,1763062276867,-7194.25079448,0.0004,7]
[393877345,1763062276971,-10000.01,0.0004,120]
[393877346,1763062277115,-10000.01,0.0004,120]
[393877347,1763062277255,-1912.13336416,0.0004,120]
[393877348,1763062277284,-1097.90160711,0.0004,120]
[393877349,1763062277315,-387.07791511,0.0004,120]
[393877350,1763062277459,-3205.78422724,0.0004,30]
[393877351,1763062277491,-10000.01,0.0004,30]
[393877352,1763062277559,-10000.01,0.0004,30]
[393877353,1763062277699,-10000.01,0.0004,30]
[393877354,1763062277869,-10000.01,0.0004,30]
[393877355,1763062278040,-10000.01,0.0004,30]
[393877356,1763062278153,-2766.02066487,0.0004,30]
[393877357,1763062278194,-4467.96867026,0.0004,2]
[393877358,1763062281162,-10000.01,0.0004,2]
[393877359,1763062286263,-4431.02952629,0.0004,2]
[393877360,1763062286286,-1137.95094742,0.0004,2]
[393877361,1763062286434,-156.8,0.0004,7]
[393877405,1763062345348,205.40790829,0.00025243,2]
[393877406,1763062346722,205.40790829,0.00037666,2]
[393877410,1763062353209,589.5153038,0.0004,2]
[393877426,1763062366888,-405.54571238,0.00040999,120]
[393877427,1763062366923,-157.96033437,0.00041313,2]
[393877428,1763062366951,-198.85443633,0.000418,60]
[393877429,1763062366980,-550.0,0.00042725,5]
[393877430,1763062367007,-199.0,0.00042726,14]
[393877431,1763062367271,-6029.43459751,0.00042726,28]
[393877433,1763062369475,-2200.0,0.00042725,5]
[393877434,1763062369506,-1961.52649561,0.00042726,28]
[393877435,1763062369541,-1676.95700878,0.00042726,28]
[393877436,1763062372444,-286.75875593,0.00043,120]
[393877437,1763062372473,-3065.29712671,0.00043173,28]
[393877442,1763062379213,1762.9960517,0.00039891,2]
[393877498,1763062449329,369.4964703,0.00025143,2]
[393877500,1763062520721,-218.71814556,0.00025243,2]
[393877508,1763062582466,5000.0,0.000271,3]
[393877511,1763062594260,-150.0,0.00030568,2]
[393877512,1763062594289,-170.526691,0.00036489,60]
[393877513,1763062594318,-199.0,0.0003863,14]
[393877514,1763062594346,-199.0,0.00039178,15]
[393877515,1763062594375,-999.0,0.00041095,120]
[393877516,1763062594402,-225.98011492,0.00042791,2]
[393877517,1763062594430,-550.0,0.00043218,5]
[393877518,1763062594460,-300.0,0.00043219,5]
[393877519,1763062594489,-1530.0,0.00043219,5]
[393877520,1763062594519,-404.87560345,0.00043219,31]
[393877521,1763062594548,-67.88911935,0.00043219,31]
[393877522,1763062594855,-407.46694256,0.00043219,31]
[393877523,1763062594886,-184.12126713,0.00043219,31]
[393877524,1763062594920,-500.0,0.00043219,7]
[393877525,1763062594956,-500.0,0.00043219,7]
[393877526,1763062594995,-500.0,0.00043219,7]
[393877527,1763062595031,-500.0,0.00043219,7]
[393877528,1763062595065,-500.0,0.00043219,7]
[393877529,1763062595097,-500.0,0.00043219,7]
[393877530,1763062595131,-500.0,0.00043219,7]
[393877531,1763062595162,-500.0,0.00043219,7]
[393877532,1763062595194,-316.83358062,0.00043219,7]
[393877533,1763062595318,-183.16641938,0.00043219,7]
[393877534,1763062595353,-500.0,0.00043219,7]
[393877535,1763062595386,-500.0,0.00043219,7]
[393877536,1763062595417,-500.0,0.00043219,7]
[393877537,1763062595450,-500.0,0.00043219,7]
[393877538,1763062595481,-500.0,0.00043219,7]
[393877539,1763062595514,-500.0,0.00043219,7]
[393877540,1763062595547,-500.0,0.00043219,7]
[393877541,1763062595581,-500.0,0.00043219,7]
[393877542,1763062595613,-500.0,0.00043219,7]
[393877543,1763062595648,-133.67716124,0.00043219,7]
[393877544,1763062597040,-366.32283876,0.00043219,7]
[393877545,1763062597078,-500.0,0.00043219,7]
[393877546,1763062597115,-500.0,0.00043219,7]
[393877547,1763062597152,-500.0,0.00043219,7]
[393877548,1763062597187,-500.0,0.00043219,7]
[393877549,1763062597220,-417.47300307,0.00043219,7]
[393877550,1763062597254,-500.0,0.00043219,7]
[393877551,1763062597297,-500.0,0.00043219,7]
[393877552,1763062597330,-500.0,0.00043219,7]
[393877553,1763062597364,-500.0,0.00043219,7]
[393877554,1763062597474,-500.0,0.00043219,7]
[393877555,1763062597507,-500.0,0.00043219,7]
[393877556,1763062597539,-500.0,0.00043219,7]
[393877557,1763062597573,-500.0,0.00043219,7]
[393877558,1763062597604,-500.0,0.00043219,7]
[393877559,1763062597636,-500.0,0.00043219,7]
[393877560,1763062597665,-410.81857196,0.00043219,31]
[393877561,1763062597700,-500.0,0.00043219,7]
[393877562,1763062597734,-500.0,0.00043219,7]
[393877563,1763062597767,-500.0,0.00043219,7]
[393877564,1763062600067,-500.0,0.00043219,7]
[393877565,1763062600100,-500.0,0.00043219,7]
[393877566,1763062600136,-500.0,0.00043219,7]
[393877567,1763062600284,-500.0,0.00043219,7]
[393877568,1763062600325,-500.0,0.00043219,7]
[393877569,1763062600364,-500.0,0.00043219,7]
[393877570,1763062600397,-500.0,0.00043219,7]
[393877571,1763062600432,-250.0,0.00043219,7]
[393877572,1763062600465,-500.0,0.00043219,7]
[393877573,1763062600499,-500.0,0.00043219,7]
[393877574,1763062600530,-0.01,0.00043219,7]
[393877575,1763062600627,-499.99,0.00043219,7]
[393877576,1763062603656,500.0,0.00035869,2]
[393877577,1763062603892,500.0,0.00035869,2]
[393877578,1763062604229,500.0,0.00035869,2]
[393877579,1763062604390,500.0,0.000367,2]
[393877580,1763062604645,5000.0,0.00043219,2]
[393877667,1763063118010,-222.91713276,0.00030876,2]
[393877668,1763063118039,-205.31647298,0.000329,120]
[393877669,1763063118067,-1200.0,0.000351,7]
[393877670,1763063118094,-1600.0,0.00035867,3]
[393877671,1763063118123,-400.0,0.00035867,2]
[393877672,1763063122093,-1000.0,0.00035868,2]
[393877673,1763063122121,-1000.0,0.00035868,2]
[393877674,1763063122148,-1000.0,0.00035868,2]
[393877675,1763063122179,-1000.0,0.00035868,2]
[393877676,1763063122206,-1000.0,0.00035868,2]
[393877677,1763063122305,-1000.0,0.00035868,2]
[393877679,1763063194095,-184.63821566,0.00037764,2]
[393877681,1763063227085,169.852591,0.00013699,2]
[393877682,1763063227323,169.852591,0.00020187,2]
[393877683,1763063227531,169.852591,0.00026676,2]
[393877684,1763063227789,169.852591,0.00033165,2]
[393877685,1763063230092,-34.51736618,0.00037764,2]
[393877686,1763063230115,-508.0,0.00038423,5]
[393877687,1763063230135,-206.0,0.00039499,5]
[393877688,1763063230157,-20682.18595957,0.000395,2]
[393877703,1763063238090,-13524.30434194,0.000395,2]
[393877709,1763063241098,-6678.8137529,0.000395,2]
[393877714,1763063254079,-1019.5398412,0.000395,2]
[393877715,1763063254100,-2456.32491237,0.00039524,20]
[393877716,1763063254120,-169.852591,0.00039654,2]
[393877717,1763063254141,-157.11391,0.000404,20]
[393877718,1763063254160,-206.3448915,0.00040899,2]
[393877719,1763063254180,-157.11391,0.000412,20]
[393877720,1763063254204,-157.11391,0.00042,20]
[393877721,1763063254228,-157.11391,0.000428,20]
[393877722,1763063254253,-500.0,0.00043209,7]
[393877723,1763063254275,-500.0,0.00043209,7]
[393877724,1763063254297,-500.0,0.00043209,7]
[393877725,1763063254319,-500.0,0.00043209,7]
[393877726,1763063254340,-500.0,0.00043209,7]
[393877727,1763063254360,-5979.38584846,0.0004321,3]
[393877728,1763063254380,-2637.54,0.0004321,10]
[393877729,1763063254401,-2197.95,0.0004321,10]
[393877730,1763063254421,-1831.63,0.0004321,10]
[393877731,1763063254443,-151.0,0.00043218,31]
[393877732,1763063254461,-156.587,0.00043218,31]
[393877733,1763063254481,-162.380719,0.00043218,31]
[393877734,1763063254503,-168.3888056,0.00043218,31]
[393877735,1763063254524,-174.61919141,0.00043218,31]
[393877736,1763063254545,-181.08010149,0.00043218,31]
[393877737,1763063254567,-187.78006525,0.00043218,31]
[393877738,1763063254587,-194.72792766,0.00043218,31]
[393877739,1763063254607,-201.93286099,0.00043218,31]
[393877740,1763063254627,-209.40437684,0.00043218,31]
[393877741,1763063254648,-217.15233878,0.00043218,31]
[393877742,1763063254668,-225.18697532,0.00043218,31]
[393877743,1763063254691,-233.51889341,0.00043218,31]
[393877744,1763063254715,-242.15909246,0.00043218,31]
[393877745,1763063254735,-251.11897888,0.00043218,31]
[393877746,1763063254756,-260.4103811,0.00043218,31]
[393877747,1763063254779,-270.0455652,0.00043218,31]
[393877748,1763063254900,-280.03725112,0.00043218,31]
[393877749,1763063254922,-290.39862941,0.00043218,31]
[393877750,1763063254944,-301.1433787,0.00043218,31]
[393877751,1763063254965,-160.4018764,0.00043219,2]
[393877752,1763063254985,-288.33762582,0.00043219,2]
[393877753,1763063330031,150.0,0.00029573,2]
[393877754,1763063330418,150.0,0.00032261,2]
[393877755,1763063330826,150.0,0.0003495,2]
[393877756,1763063349095,-371.8126424,0.00037063,2]
[393877757,1763063349117,-2682.13498588,0.000432,28]
[393877758,1763063349138,-1670.73811372,0.0004321,3]
[393877759,1763063365351,-1337.67409682,0.0004321,3]
[393877760,1763063368151,-2675.34819364,0.0004321,3]
[393877761,1763063368311,-3844.57505508,0.0004321,3]
[393877762,1763063374205,-804.73855764,0.0004321,3]
[393877798,1763063432078,-838.0250711,0.00037798,2]
[393877799,1763063433043,-160.9749289,0.00037798,2]
[393877800,1763063433052,-1958.0,0.00039524,20]
[393877801,1763063433061,-500.0,0.00043219,7]
[393877802,1763063433070,-96.00682214,0.00043219,2]
[393877803,1763063433082,-403.99317786,0.00043219,2]
[393877804,1763063433091,-246.00682214,0.00043219,2]
[393877817,1763063438106,-1061.86066332,0.0004312,2]
[393877818,1763063438583,-6969.7571713,0.0004312,2]
[393877819,1763063438853,-2381.18925842,0.0004312,2]
[393877839,1763063440183,-2239.665,0.0004312,2]
[393877840,1763063440239,-5624.83844082,0.0004312,2]
[393877841,1763063440367,-1502.70048244,0.0004312,2]
[393877863,1763063440919,-10000.01,0.0004312,2]
[393877864,1763063441155,-10000.01,0.0004312,2]
[393877865,1763063441285,-10000.01,0.0004312,2]
[393877866,1763063441412,-10000.01,0.0004312,2]
[393877867,1763063441626,-10000.01,0.0004312,2]
[393877882,1763063443507,-651.0,0.0004312,2]
[393877883,1763063443518,-2748.4039686,0.0004312,2]
[393877887,1763063443750,-10000.01,0.0004312,2]
[393877898,1763063446718,-124.16352103,0.0004311,10]
[393877899,1763063448979,193.28926913,0.00025243,2]
[393877903,1763063461841,215.05097856,0.00025243,2]
[393877934,1763063585854,150.0,0.00030377,2]
[393877936,1763063615076,-361.93259749,0.0003596,2]
[393877937,1763063618218,-193.64987018,0.0003596,2]
[393877938,1763063620434,-348.88999889,0.0003596,2]
[393877939,1763063622479,-221.19458026,0.0003596,2]
[393877940,1763063624604,-201.70240487,0.0003596,2]
[393877941,1763063627360,-265.53209026,0.0003596,2]
[393877942,1763063631422,-249.19829195,0.0003596,2]
[393877943,1763063651161,150.0,0.000295,2]
[393877979,1763063791923,166.88718133,0.000329,120]
[393877980,1763063792584,166.88718133,0.000339,120]
[393877981,1763063793221,15.86155713,0.000349,120]
[393877982,1763063793244,151.0256242,0.000349,120]
[393877983,1763063816488,1380.70243703,0.00035868,2]
[393877985,1763063832812,300.0,0.000295,20]
[393878005,1763063842147,251.62827683,0.000295,7]
[393878006,1763063842172,48.37172317,0.000295,7]
[393878007,1763063851648,300.0,0.000295,2]
[393878008,1763063894286,207.79585226,0.00025243,2]
[393878009,1763063896378,300.0,0.000295,20]
[393878010,1763063906172,300.0,0.000295,20]
[393878011,1763063915663,225.52506942,0.000295,20]
[393878012,1763063915684,74.47493058,0.000295,20]
[393878013,1763063925287,300.0,0.000295,7]
[393878014,1763063935421,300.0,0.000295,7]
[393878015,1763063944996,300.0,0.000295,7]
[393878016,1763063952708,300.0,0.000295,20]
[393878017,1763063954838,300.0,0.000295,2]
[393878018,1763063963015,300.0,0.000295,7]
[393878019,1763064014343,291.89327187,0.00025243,2]
[393878020,1763064073063,300.0,0.000252,20]
[393878021,1763064082946,300.0,0.000252,20]
[393878022,1763064092089,300.0,0.000252,7]
[393878023,1763064101577,300.0,0.000252,7]
[393878026,1763064110901,300.0,0.000252,2]
[393878027,1763064120448,300.0,0.000252,2]
[393878030,1763064133766,300.0,0.000252,20]
[393878033,1763064143693,300.0,0.000252,20]
[393878038,1763064153035,300.0,0.000252,20]
[393878043,1763064162940,300.0,0.000252,20]
[393878048,1763064172842,300.0,0.000252,7]
[393878053,1763064182408,300.0,0.000252,7]
[393878057,1763064191687,300.0,0.000252,7]
[393878058,1763064192520,300.0,0.000252,20]
[393878061,1763064200947,300.0,0.000252,7]
[393878062,1763064202406,300.0,0.000252,20]
[393878064,1763064210642,300.0,0.000252,2]
[393878066,1763064211875,300.0,0.000252,20]
[393878070,1763064220342,300.0,0.000252,2]
[393878072,1763064221389,300.0,0.000252,7]
[393878076,1763064230249,300.0,0.000252,2]
[393878077,1763064230771,300.0,0.000252,7]
[393878096,1763064392118,-418.30656969,0.0003596,2]
[393878102,1763064551115,-810.87061821,0.0003596,2]
[393878103,1763064551140,-409.2801726,0.00036378,2]
[393878104,1763064551163,-291.89327187,0.00037388,2]
[393878105,1763064551186,-207.79585226,0.00037398,2]
[393878106,1763064551209,-1316.0,0.00038055,3]
[393878107,1763064551231,-400.0,0.00038098,2]
[393878108,1763064551254,-300.0,0.00038099,3]
[393878109,1763064551276,-300.0,0.00038099,3]
[393878110,1763064551298,-223.36296703,0.0003815,2]
[393878111,1763064551321,-480.22825361,0.00038151,2]
[393878112,1763064551346,-2888.55,0.00038151,10]
[393878113,1763064551371,-2407.13,0.00038151,10]
[393878114,1763064551393,-2566.43519848,0.00038151,3]
[393878115,1763064553141,-7251.68860932,0.00038151,3]
[393878116,1763064553162,-500.0,0.0003816,2]
[393878117,1763064553186,-500.0,0.0003816,15]
[393878118,1763064553208,-344.40779832,0.0003816,15]
[393878119,1763064553232,-500.0,0.0003816,15]
[393878120,1763064553253,-500.0,0.0003816,15]
[393878121,1763064553274,-500.0,0.0003816,15]
[393878122,1763064553293,-500.0,0.0003816,15]
[393878123,1763064553312,-500.0,0.0003816,15]
[393878124,1763064553334,-388.50580721,0.0003816,15]
[393878125,1763064556336,-111.49419279,0.0003816,15]
[393878126,1763064556361,-500.0,0.0003816,15]
[393878127,1763064556387,-300.0,0.0003816,15]
[393878128,1763064556410,-500.0,0.0003816,15]
[393878129,1763064556434,-241.77451953,0.0003816,15]
[393878130,1763064556458,-500.0,0.0003816,15]
[393878131,1763064556482,-500.0,0.0003816,7]
[393878132,1763064556506,-500.0,0.0003816,7]
[393878133,1763064556528,-500.0,0.0003816,7]
[393878134,1763064556548,-500.0,0.00038161,2]
[393878135,1763064556569,-500.0,0.00038161,2]
[393878136,1763064556590,-500.0,0.00038161,2]
[393878137,1763064556618,-500.0,0.00038161,2]
[393878138,1763064556642,-39247.77692753,0.00038161,30]
[393878139,1763064559204,-50208.05558697,0.00038161,30]
[393878140,1763064559226,-196.01,0.000382,7]
[393878141,1763064559250,-330.17219816,0.00038222,2]
[393878142,1763064559274,-199.0,0.0003863,14]
[393878143,1763064559297,-904.7713901,0.0003874,20]
[393878144,1763064559320,-1000.0,0.000393,29]
[393878145,1763064559343,-500.0,0.00039521,7]
[393878146,1763064559366,-500.0,0.00039521,7]
[393878147,1763064559393,-168.04413635,0.00039521,7]
[393878148,1763064559544,-500.0,0.00039521,7]
[393878149,1763064559565,-1067.43057369,0.00039522,4]
[393878150,1763064559586,-560.0,0.00040718,5]
[393878151,1763064559611,-157.11391,0.00042675,10]
[393878152,1763064559630,-5498.08009921,0.0004299,2]
[393878153,1763064559655,-576.32937126,0.0004302,2]
[393878154,1763064559679,-663.17,0.0004307,30]
[393878155,1763064559700,-552.64,0.0004307,30]
[393878156,1763064559723,-460.53,0.0004307,30]
[393878157,1763064559743,-383.78,0.0004307,30]
[393878158,1763064559764,-319.81,0.0004307,30]
[393878159,1763064559785,-549.45048534,0.00043073,10]
[393878160,1763064559805,-500.0,0.00043073,10]
[393878161,1763064559823,-150.0,0.00043073,10]
[393878162,1763064559842,-9818.1238078,0.0004308,3]
[393878163,1763064559861,-3923.3,0.0004308,30]
[393878164,1763064559882,-1980.2,0.0004308,30]
[393878165,1763064559904,-1650.17,0.0004308,30]
[393878166,1763064559923,-1375.14,0.0004308,30]
[393878167,1763064559943,-954.96,0.0004308,30]
[393878168,1763064559962,-795.8,0.0004308,30]
[393878169,1763064559981,-500.0,0.00043089,2]
[393878170,1763064560000,-3421.79,0.0004309,30]
[393878171,1763064560021,-2851.49,0.0004309,30]
[393878172,1763064560041,-2376.24,0.0004309,30]
[393878173,1763064560060,-1145.95,0.0004309,30]
[393878174,1763064560080,-266.51,0.0004309,30]
[393878175,1763064560100,-3276.9,0.0004309,10]
[393878176,1763064560119,-539.36937811,0.00043099,2]
[393878177,1763064560140,-151.0,0.000431,15]
[393878178,1763064560160,-151.0,0.000431,18]
[393878179,1763064560179,-151.0,0.000431,15]
[393878180,1763064560199,-151.0,0.000431,10]
[393878181,1763064560219,-151.0,0.000431,11]
[393878182,1763064560240,-9818.1238078,0.000431,3]
[393878183,1763064560261,-33404.86747434,0.0004311,3]
[393878184,1763064561147,-104048.86583466,0.0004311,3]
[393878185,1763064561169,-16614.61085944,0.0004312,2]
[393878193,1763064562148,-22091.32712801,0.0004312,2]
[393878210,1763064632233,-349.7275,0.000381,2]
[393878212,1763064632289,-2039.84913875,0.000381,2]
[393878214,1763064632299,-850.8494948,0.00041677,2]
[393878215,1763064632309,-209.40437684,0.00043109,3]
[393878217,1763064632318,-78.98679589,0.00043109,3]
[393878220,1763064632329,-138.16554289,0.00043109,3]
[393878222,1763064632339,-225.18697532,0.00043109,3]
[393878224,1763064632348,-233.51889341,0.00043109,3]
[393878226,1763064632357,-242.15909246,0.00043109,3]
[393878227,1763064632366,-251.11897888,0.00043109,3]
[393878229,1763064632375,-260.4103811,0.00043109,3]
[393878231,1763064632384,-270.0455652,0.00043109,3]
[393878233,1763064632393,-175.33510727,0.00043109,3]
[393878399,1763064638205,-277.16517541,0.00040272,2]
[393878400,1763064638215,-104.70214385,0.00043109,3]
[393878401,1763064638224,-290.39862941,0.00043109,3]
[393878402,1763064638234,-112.57983683,0.00043109,3]
[393878428,1763064640480,-97.95001822,0.00043109,3]
[393878430,1763064640496,-90.61352365,0.00043109,3]
[393878432,1763064640505,-222.09,0.0004311,30]
[393878434,1763064640515,-185.08,0.0004311,30]
[393878436,1763064640525,-154.23,0.0004311,30]
[393878438,1763064640534,-1580.3,0.0004311,10]
[393878440,1763064640543,-771.18,0.0004311,30]
[393878442,1763064640552,-2467.37,0.0004311,10]
[393878444,1763064640561,-2056.14,0.0004311,10]
[393878446,1763064640570,-309.0,0.00043119,5]
[393878448,1763064640579,-5512.85647635,0.0004312,2]
[393878573,1763064644860,-4716.57905846,0.0004312,2]
[393878574,1763064645063,-2661.61000003,0.0004312,2]
[393878578,1763064646698,191.22076011,0.00025243,2]
[393878580,1763064748007,305.35010103,0.00030876,2]
[393878581,1763064748589,672.11412109,0.00035868,2]
[393878582,1763064748612,199.16033358,0.00035868,2]
[393878583,1763064749890,220.12824648,0.00025243,2]
[393878584,1763064750502,220.12824648,0.00031329,2]
[393878585,1763064780223,1285.16024785,0.00025205,2]
[393878590,1763064797505,245.00405611,0.00030876,2]
[393878591,1763064797628,394.76525599,0.00025243,2]
[393878592,1763064798290,394.76525599,0.00031258,2]
[393878593,1763064813510,292.34333041,0.00025243,2]
[393878594,1763064845371,292.26950482,0.00025243,2]
[393878595,1763064862963,150.0,0.0002905,2]
[393878596,1763064863420,278.2,0.00031691,2]
[393878597,1763064863825,205.89195695,0.00034332,2]
[393878598,1763064863850,211.40804305,0.00034332,2]
[393878599,1763064890443,150.0,0.0002589,2]
[393878600,1763064890819,177.0,0.0002789,2]
[393878601,1763064891177,204.0,0.0002989,2]
[393878602,1763064891526,231.0,0.0003189,2]
[393878603,1763064891889,258.0,0.0003389,120]
[393878604,1763064903989,800.0,0.000253,2]
[393878605,1763064904066,1600.0,0.00026396,2]
[393878606,1763064904117,1699.67614572,0.00027492,5]
[393878607,1763064941393,150.0,0.0002883,2]
[393878608,1763064941798,256.68,0.00031451,2]
[393878609,1763064942208,278.46214443,0.00034072,2]
[393878610,1763064942233,106.54785557,0.00034072,2]
[393878613,1763064946347,183.93418737,0.00032312,30]
[393878614,1763065020403,150.0,0.00028824,2]
[393878615,1763065021287,219.95753706,0.00031444,2]
[393878616,1763065021316,16.56246294,0.00031444,2]
[393878617,1763065021951,354.79,0.00034064,2]
[393878618,1763065099759,150.0,0.00028946,2]
[393878619,1763065100158,217.65,0.00031577,2]
[393878620,1763065100567,6.82493058,0.00034209,2]
[393878621,1763065100593,319.65506942,0.00034209,2]
[393878622,1763065118793,200.0,0.00035243,15]
[393878623,1763065153252,300.0,0.000341,20]
[393878624,1763065162995,300.0,0.000341,7]
[393878625,1763065172702,300.0,0.000341,2]
[393878626,1763065177991,150.0,0.0002894,2]
[393878627,1763065178394,199.98,0.00031571,2]
[393878628,1763065178801,299.98,0.00034202,2]
[393878630,1763065208530,150.0,0.0002589,2]
[393878631,1763065208912,177.0,0.0002789,2]
[393878632,1763065209280,204.0,0.0002989,2]
[393878633,1763065209642,206.22382607,0.0003189,2]
[393878634,1763065209665,24.77617393,0.0003189,2]
[393878635,1763065210021,258.0,0.0003389,120]
[393878643,1763065255536,6595.25629371,0.00035579,2]
[393878644,1763065265100,-150.0,0.00028797,2]
[393878649,1763065340837,-150.0,0.00028939,2]
[393878655,1763065415152,-150.0,0.00029,2]
[393878662,1763065549157,-337.33072109,0.00030876,2]
[393878663,1763065549177,-2322.23029926,0.00031037,2]
[393878667,1763065633991,840.69,0.0003288,120]
[393878669,1763065639102,-150.0,0.00031137,2]
[393878670,1763065639123,-81.45697348,0.00033844,2]
[393878671,1763065642083,-255.87374761,0.00033844,2]
[393878672,1763065642107,-171.99,0.00033968,2]
[393878673,1763065642127,-1000.0,0.00034828,30]
[393878674,1763065642147,-400.0,0.00035572,2]
[393878675,1763065642167,-388.40419167,0.00035573,5]
[393878676,1763065644128,-112.96727316,0.00035573,5]
[393878677,1763065644149,-304.03237781,0.00035573,5]
[393878678,1763065654084,-195.96762219,0.00035573,5]
[393878679,1763065654105,-500.0,0.00035573,5]
[393878680,1763065654127,-128.74546099,0.00035573,5]
[393878683,1763065700646,-500.71451375,0.00025243,2]
[393878684,1763065705031,853.68366912,0.00017,2]
[393878689,1763065707721,9146.32633088,0.00015,2]
[393878690,1763065707745,10000.01,0.00015,2]
[393878691,1763065707768,9780.58240356,0.00015,2]
[393878694,1763065710656,29264.927048,0.00026,30]